[Event "Titled Tuesday Blitz March 07 Early 2023"]
[White "Winkels, Marcel"]
[Black "Fikiet, Alex"]
[WhiteFideId "1003887"]
[BlackFideId "2052717"]
[WhiteElo "1900"]
[BlackElo "2423"]
[Result "0-1"]
[Round "02"]
[TimeControl "180+2"]
[Date "2023.03.07"]
[WhiteClock "0:00:38"]
[BlackClock "0:00:40"]

1. e4 {[%clk 0:03:00]}  c5 {[%clk 0:02:59]} 2. Nf3 {[%clk 0:02:59]}  Nc6 {[%clk 0:02:59]} 3. d4 {[%clk 0:03:00]}  cxd4 {[%clk 0:02:59]} 4. c3 {[%clk 0:03:00]}  d3 {[%clk 0:02:55]} 5. Bxd3 {[%clk 0:02:59]}  g6 {[%clk 0:02:55]} 6. O-O {[%clk 0:02:58]}  Bg7 {[%clk 0:02:55]} 7. c4 {[%clk 0:02:58]}  d6 {[%clk 0:02:56]} 8. Nc3 {[%clk 0:02:59]}  Nf6 {[%clk 0:02:56]} 9. Qe2 {[%clk 0:02:57]}  Bg4 {[%clk 0:02:51]} 10. Be3 {[%clk 0:02:54]}  Ne5 {[%clk 0:02:48]} 11. Rfd1 {[%clk 0:02:34]}  O-O {[%clk 0:02:42]} 12. Nd5 {[%clk 0:02:24]}  Nxd5 {[%clk 0:02:40]} 13. exd5 {[%clk 0:02:22]}  Bxf3 {[%clk 0:02:23]} 14. gxf3 {[%clk 0:02:20]}  Nxd3 {[%clk 0:02:20]} 15. Rxd3 {[%clk 0:02:13]}  Rc8 {[%clk 0:02:15]} 16. Rc1 {[%clk 0:02:10]}  b6 {[%clk 0:02:15]} 17. b3 {[%clk 0:02:09]}  Re8 {[%clk 0:02:11]} 18. Bd4 {[%clk 0:02:08]}  e5 {[%clk 0:02:07]} 19. dxe6 {[%clk 0:01:55]}  Rxe6 {[%clk 0:02:06]} 20. Qb2 {[%clk 0:01:54]}  Bh6 {[%clk 0:02:01]} 21. Rcd1 {[%clk 0:01:50]}  Qh4 {[%clk 0:01:55]} 22. Bc3 {[%clk 0:01:26]}  Bf4 {[%clk 0:01:51]} 23. Re3 {[%clk 0:01:12]}  Qxh2+ {[%clk 0:01:26]} 24. Kf1 {[%clk 0:01:10]}  Bxe3 {[%clk 0:01:26]} 25. fxe3 {[%clk 0:01:10]}  Qxb2 {[%clk 0:01:24]} 26. Bxb2 {[%clk 0:01:09]}  Rxe3 {[%clk 0:01:24]} 27. Rxd6 {[%clk 0:01:08]}  Rce8 {[%clk 0:01:11]} 28. Rd1 {[%clk 0:01:04]}  Rxf3+ {[%clk 0:01:11]} 29. Kg2 {[%clk 0:01:04]}  Rf5 {[%clk 0:01:01]} 30. Bc3 {[%clk 0:00:59]}  Re2+ {[%clk 0:00:59]} 31. Kg1 {[%clk 0:00:58]}  Re8 {[%clk 0:00:56]} 32. a4 {[%clk 0:00:51]}  Rf3 {[%clk 0:00:51]} 33. Rc1 {[%clk 0:00:50]}  Ree3 {[%clk 0:00:46]} 34. Bd2 {[%clk 0:00:40]}  Rxb3 {[%clk 0:00:45]} 35. Bh6 {[%clk 0:00:39]}  Rh3 {[%clk 0:00:41]} 36. Bg5 {[%clk 0:00:38]}  Rhg3+ {[%clk 0:00:40]} 37. Kf2 {[%clk 0:00:38]}  Rxg5 {[%clk 0:00:40]} 0-1


[Site "https://www.chess.com"]

[Event "Titled Tuesday Blitz March 07 Early 2023"]
[White "Johnson, Ben"]
[Black "Staudenhocker43"]
[WhiteFideId "2010917"]
[WhiteElo "2156"]
[BlackElo "2422"]
[Result "0-1"]
[Round "02"]
[TimeControl "180+2"]
[Date "2023.03.07"]
[WhiteClock "0:00:02"]
[BlackClock "0:01:22"]

1. Nf3 {[%clk 0:03:00]}  Nf6 {[%clk 0:02:59]} 2. c4 {[%clk 0:03:00]}  g6 {[%clk 0:02:59]} 3. g3 {[%clk 0:02:59]}  Bg7 {[%clk 0:03:00]} 4. Bg2 {[%clk 0:03:00]}  O-O {[%clk 0:03:00]} 5. O-O {[%clk 0:03:00]}  d6 {[%clk 0:03:01]} 6. d4 {[%clk 0:03:00]}  c5 {[%clk 0:03:01]} 7. Nc3 {[%clk 0:02:57]}  Nc6 {[%clk 0:03:02]} 8. d5 {[%clk 0:02:52]}  Na5 {[%clk 0:03:02]} 9. Nd2 {[%clk 0:02:49]}  e6 {[%clk 0:03:02]} 10. Qc2 {[%clk 0:02:34]}  Re8 {[%clk 0:03:00]} 11. e4 {[%clk 0:02:28]}  exd5 {[%clk 0:03:00]} 12. cxd5 {[%clk 0:02:24]}  a6 {[%clk 0:02:59]} 13. a4 {[%clk 0:02:18]}  Rb8 {[%clk 0:02:59]} 14. Re1 {[%clk 0:02:05]}  Qc7 {[%clk 0:02:51]} 15. b3 {[%clk 0:01:58]}  b5 {[%clk 0:02:49]} 16. axb5 {[%clk 0:01:56]}  axb5 {[%clk 0:02:50]} 17. Bb2 {[%clk 0:01:52]}  b4 {[%clk 0:02:35]} 18. Na4 {[%clk 0:01:46]}  Bd7 {[%clk 0:02:31]} 19. h3 {[%clk 0:01:31]}  Bxa4 {[%clk 0:02:19]} 20. Rxa4 {[%clk 0:01:28]}  Nxd5 {[%clk 0:02:17]} 21. Bxg7 {[%clk 0:00:59]}  Kxg7 {[%clk 0:02:16]} 22. Rea1 {[%clk 0:00:56]}  Nxb3 {[%clk 0:02:09]} 23. Qxb3 {[%clk 0:00:44]}  Nc3 {[%clk 0:02:06]} 24. Ra7 {[%clk 0:00:41]}  Rb7 {[%clk 0:02:05]} 25. Rxb7 {[%clk 0:00:37]}  Qxb7 {[%clk 0:02:06]} 26. e5 {[%clk 0:00:35]}  d5 {[%clk 0:01:51]} 27. Re1 {[%clk 0:00:10]}  Re7 {[%clk 0:01:41]} 28. f4 {[%clk 0:00:09]}  c4 {[%clk 0:01:39]} 29. Nxc4 {[%clk 0:00:05]}  dxc4 {[%clk 0:01:38]} 30. Qxc4 {[%clk 0:00:05]}  Qb6+ {[%clk 0:01:35]} 31. Kh2 {[%clk 0:00:05]}  Rc7 {[%clk 0:01:33]} 32. Qd3 {[%clk 0:00:03]}  b3 {[%clk 0:01:30]} 33. f5 {[%clk 0:00:04]}  gxf5 {[%clk 0:01:29]} 34. Qxf5 {[%clk 0:00:04]}  b2 {[%clk 0:01:26]} 35. h4 {[%clk 0:00:03]}  b1=Q {[%clk 0:01:22]} 36. Rxb1 {[%clk 0:00:02]}  Nxb1 {[%clk 0:01:22]} 0-1


[Site "https://www.chess.com"]

[Event "Titled Tuesday Blitz March 07 Early 2023"]
[White "Tarnowska, Aleksandra"]
[Black "Sargissyan, Sargis"]
[WhiteFideId "1180967"]
[BlackFideId "13303210"]
[WhiteElo "1776"]
[BlackElo "2109"]
[Result "0-1"]
[Round "02"]
[TimeControl "180+2"]
[Date "2023.03.07"]
[WhiteClock "0:00:08"]
[BlackClock "0:00:12"]

1. e4 {[%clk 0:03:00]}  c5 {[%clk 0:02:57]} 2. Nf3 {[%clk 0:03:01]}  d6 {[%clk 0:02:58]} 3. Bb5+ {[%clk 0:03:01]}  Nd7 {[%clk 0:02:58]} 4. O-O {[%clk 0:03:00]}  a6 {[%clk 0:02:57]} 5. Bxd7+ {[%clk 0:02:56]}  Bxd7 {[%clk 0:02:58]} 6. d3 {[%clk 0:02:51]}  g6 {[%clk 0:02:52]} 7. Re1 {[%clk 0:02:48]}  Bg7 {[%clk 0:02:53]} 8. Nbd2 {[%clk 0:02:48]}  Nf6 {[%clk 0:02:52]} 9. Nf1 {[%clk 0:02:48]}  O-O {[%clk 0:02:52]} 10. c3 {[%clk 0:02:47]}  b5 {[%clk 0:02:35]} 11. Ng3 {[%clk 0:02:44]}  e5 {[%clk 0:02:29]} 12. h3 {[%clk 0:02:32]}  Qc7 {[%clk 0:02:28]} 13. Bg5 {[%clk 0:02:25]}  Ne8 {[%clk 0:02:26]} 14. Qd2 {[%clk 0:02:24]}  f6 {[%clk 0:02:25]} 15. Bh6 {[%clk 0:02:24]}  Bc6 {[%clk 0:02:25]} 16. Rad1 {[%clk 0:01:53]}  f5 {[%clk 0:02:14]} 17. Bxg7 {[%clk 0:01:46]}  Nxg7 {[%clk 0:02:12]} 18. d4 {[%clk 0:01:21]}  fxe4 {[%clk 0:02:09]} 19. Nxe4 {[%clk 0:01:20]}  exd4 {[%clk 0:02:09]} 20. cxd4 {[%clk 0:01:20]}  Rae8 {[%clk 0:02:10]} 21. d5 {[%clk 0:01:20]}  Bd7 {[%clk 0:02:08]} 22. Qg5 {[%clk 0:00:57]}  Kh8 {[%clk 0:01:23]} 23. Nf6 {[%clk 0:00:53]}  Rxe1+ {[%clk 0:01:20]} 24. Rxe1 {[%clk 0:00:53]}  Qd8 {[%clk 0:01:09]} 25. Nxd7 {[%clk 0:00:32]}  Qxd7 {[%clk 0:01:09]} 26. Re7 {[%clk 0:00:33]}  Qf5 {[%clk 0:01:08]} 27. Qh6 {[%clk 0:00:29]}  Qf6 {[%clk 0:01:08]} 28. Rd7 {[%clk 0:00:26]}  Re8 {[%clk 0:00:12]} 29. Kh2 {[%clk 0:00:17]}  Kg8 {[%clk 0:00:10]} 30. Ra7 {[%clk 0:00:10]}  Re7 {[%clk 0:00:09]} 31. Rxe7 {[%clk 0:00:08]}  Qxe7 {[%clk 0:00:09]} 32. Ng5 {[%clk 0:00:08]}  Nf5 {[%clk 0:00:07]} 33. Qxh7+ {[%clk 0:00:02]}  Qxh7 {[%clk 0:00:08]} 34. Nxh7 {[%clk 0:00:03]}  Kxh7 {[%clk 0:00:09]} 35. g4 {[%clk 0:00:02]}  Ne7 {[%clk 0:00:09]} 36. Kg3 {[%clk 0:00:01]}  Nxd5 {[%clk 0:00:10]} 37. f4 {[%clk 0:00:02]}  Kg7 {[%clk 0:00:10]} 38. Kf3 {[%clk 0:00:02]}  Ne7 {[%clk 0:00:10]} 39. Ke4 {[%clk 0:00:03]}  Kf6 {[%clk 0:00:10]} 40. g5+ {[%clk 0:00:03]}  Ke6 {[%clk 0:00:11]} 41. h4 {[%clk 0:00:03]}  d5+ {[%clk 0:00:11]} 42. Ke3 {[%clk 0:00:04]}  Nf5+ {[%clk 0:00:12]} 43. Kf3 {[%clk 0:00:04]}  c4 {[%clk 0:00:11]} 44. Kg4 {[%clk 0:00:04]}  d4 {[%clk 0:00:11]} 45. h5 {[%clk 0:00:05]}  gxh5+ {[%clk 0:00:11]} 46. Kxh5 {[%clk 0:00:06]}  d3 {[%clk 0:00:11]} 47. g6 {[%clk 0:00:06]}  d2 {[%clk 0:00:11]} 48. g7 {[%clk 0:00:06]}  Nxg7+ {[%clk 0:00:11]} 49. Kg6 {[%clk 0:00:07]}  Nf5 {[%clk 0:00:11]} 50. b3 {[%clk 0:00:07]}  d1=Q {[%clk 0:00:11]} 51. bxc4 {[%clk 0:00:08]}  Qg4+ {[%clk 0:00:11]} 52. Kh7 {[%clk 0:00:08]}  Qg7# {[%clk 0:00:12]} 0-1


[Site "https://www.chess.com"]

[Event "Titled Tuesday Blitz March 07 Early 2023"]
[White "Real_taiatai"]
[Black "Chemin, Justo Reinaldo"]
[BlackFideId "2101580"]
[WhiteElo "2411"]
[BlackElo "1940"]
[Result "1-0"]
[Round "02"]
[TimeControl "180+2"]
[Date "2023.03.07"]
[WhiteClock "0:00:14"]
[BlackClock "0:00:05"]

1. d4 {[%clk 0:02:56]}  d5 {[%clk 0:02:59]} 2. c4 {[%clk 0:02:57]}  dxc4 {[%clk 0:02:58]} 3. Nf3 {[%clk 0:02:57]}  e6 {[%clk 0:02:57]} 4. e4 {[%clk 0:02:57]}  c5 {[%clk 0:02:56]} 5. Bxc4 {[%clk 0:02:56]}  cxd4 {[%clk 0:02:54]} 6. Nxd4 {[%clk 0:02:53]}  Nf6 {[%clk 0:02:47]} 7. Nc3 {[%clk 0:02:51]}  Nc6 {[%clk 0:02:29]} 8. Be3 {[%clk 0:02:50]}  Be7 {[%clk 0:02:23]} 9. Nxc6 {[%clk 0:02:47]}  Qxd1+ {[%clk 0:02:18]} 10. Rxd1 {[%clk 0:02:46]}  bxc6 {[%clk 0:02:19]} 11. f3 {[%clk 0:02:33]}  O-O {[%clk 0:02:17]} 12. Kf2 {[%clk 0:02:30]}  e5 {[%clk 0:02:11]} 13. Na4 {[%clk 0:02:27]}  Be6 {[%clk 0:01:57]} 14. Bxe6 {[%clk 0:02:26]}  fxe6 {[%clk 0:01:58]} 15. Bc5 {[%clk 0:02:25]}  Nxe4+ {[%clk 0:01:55]} 16. Ke3 {[%clk 0:02:22]}  Nxc5 {[%clk 0:01:54]} 17. Nc3 {[%clk 0:02:21]}  Bg5+ {[%clk 0:01:51]} 18. Ke2 {[%clk 0:02:21]}  Rad8 {[%clk 0:01:48]} 19. b4 {[%clk 0:02:18]}  Na6 {[%clk 0:01:42]} 20. Ne4 {[%clk 0:02:18]}  Be7 {[%clk 0:01:41]} 21. a3 {[%clk 0:02:17]}  Nc7 {[%clk 0:01:41]} 22. Rc1 {[%clk 0:02:17]}  Nb5 {[%clk 0:01:27]} 23. Kf2 {[%clk 0:02:10]}  Nd4 {[%clk 0:01:24]} 24. Rc4 {[%clk 0:02:02]}  a5 {[%clk 0:01:24]} 25. bxa5 {[%clk 0:02:01]}  Ra8 {[%clk 0:01:22]} 26. a4 {[%clk 0:01:57]}  Rxa5 {[%clk 0:01:22]} 27. Rb1 {[%clk 0:01:57]}  Rfa8 {[%clk 0:01:19]} 28. Rb7 {[%clk 0:01:56]}  Bf6 {[%clk 0:01:16]} 29. g4 {[%clk 0:01:52]}  h6 {[%clk 0:01:15]} 30. Rbb4 {[%clk 0:01:20]}  c5 {[%clk 0:01:12]} 31. Nxc5 {[%clk 0:01:17]}  Rc8 {[%clk 0:01:05]} 32. Nd7 {[%clk 0:01:06]}  Rxc4 {[%clk 0:01:02]} 33. Rxc4 {[%clk 0:01:06]}  Kf7 {[%clk 0:00:56]} 34. Nc5 {[%clk 0:01:03]}  Ra7 {[%clk 0:00:45]} 35. Ne4 {[%clk 0:01:01]}  Be7 {[%clk 0:00:41]} 36. Kg3 {[%clk 0:01:00]}  Ne2+ {[%clk 0:00:40]} 37. Kf2 {[%clk 0:01:00]}  Nf4 {[%clk 0:00:41]} 38. Kg3 {[%clk 0:00:57]}  Nd5 {[%clk 0:00:40]} 39. h4 {[%clk 0:00:22]}  Rc7 {[%clk 0:00:39]} 40. Rxc7 {[%clk 0:00:20]}  Nxc7 {[%clk 0:00:39]} 41. g5 {[%clk 0:00:21]}  hxg5 {[%clk 0:00:39]} 42. hxg5 {[%clk 0:00:21]}  Na6 {[%clk 0:00:37]} 43. Kg4 {[%clk 0:00:18]}  g6 {[%clk 0:00:36]} 44. Nf2 {[%clk 0:00:18]}  Nc5 {[%clk 0:00:36]} 45. a5 {[%clk 0:00:18]}  Bd8 {[%clk 0:00:34]} 46. Kh4 {[%clk 0:00:13]}  Bxa5 {[%clk 0:00:33]} 47. Ng4 {[%clk 0:00:13]}  Nd7 {[%clk 0:00:31]} 48. Nh6+ {[%clk 0:00:12]}  Ke7 {[%clk 0:00:29]} 49. Ng4 {[%clk 0:00:12]}  Bd2 {[%clk 0:00:27]} 50. Nf2 {[%clk 0:00:12]}  Bf4 {[%clk 0:00:26]} 51. Ne4 {[%clk 0:00:13]}  Kf7 {[%clk 0:00:24]} 52. Kg4 {[%clk 0:00:14]}  Kg7 {[%clk 0:00:24]} 53. Nd6 {[%clk 0:00:14]}  Nc5 {[%clk 0:00:24]} 54. Ne8+ {[%clk 0:00:13]}  Kf7 {[%clk 0:00:23]} 55. Nd6+ {[%clk 0:00:13]}  Ke7 {[%clk 0:00:23]} 56. Nc8+ {[%clk 0:00:14]}  Kd7 {[%clk 0:00:23]} 57. Nb6+ {[%clk 0:00:15]}  Kc6 {[%clk 0:00:19]} 58. Nc8 {[%clk 0:00:14]}  Kd7 {[%clk 0:00:20]} 59. Nb6+ {[%clk 0:00:14]}  Ke7 {[%clk 0:00:19]} 60. Nc8+ {[%clk 0:00:14]}  Kf7 {[%clk 0:00:19]} 61. Nd6+ {[%clk 0:00:14]}  Kg7 {[%clk 0:00:13]} 62. Ne8+ {[%clk 0:00:14]}  Kf8 {[%clk 0:00:11]} 63. Nd6 {[%clk 0:00:13]}  Bh2 {[%clk 0:00:11]} 64. Nc4 {[%clk 0:00:12]}  e4 {[%clk 0:00:10]} 65. f4 {[%clk 0:00:12]}  Bg1 {[%clk 0:00:08]} 66. Ne5 {[%clk 0:00:12]}  Nd3 {[%clk 0:00:08]} 67. Nxg6+ {[%clk 0:00:12]}  Kg7 {[%clk 0:00:08]} 68. Nh4 {[%clk 0:00:12]}  e3 {[%clk 0:00:07]} 69. Kg3 {[%clk 0:00:12]}  e2 {[%clk 0:00:07]} 70. Nf3 {[%clk 0:00:13]}  e1=Q+ {[%clk 0:00:06]} 71. Nxe1 {[%clk 0:00:13]}  Nxe1 {[%clk 0:00:07]} 72. Kg4 {[%clk 0:00:14]}  Nd3 {[%clk 0:00:06]} 73. f5 {[%clk 0:00:14]}  e5 {[%clk 0:00:05]} 74. g6 {[%clk 0:00:13]}  Kf6 {[%clk 0:00:05]} 75. Kh5 {[%clk 0:00:14]} 1-0


[Site "https://www.chess.com"]

[Event "Titled Tuesday Blitz March 07 Early 2023"]
[White "ritanovikova"]
[Black "Zherebtsova, Alexandra"]
[BlackFideId "24129518"]
[WhiteElo "2129"]
[BlackElo "2055"]
[Result "0-1"]
[Round "02"]
[TimeControl "180+2"]
[Date "2023.03.07"]
[WhiteClock "0:00:17"]
[BlackClock "0:00:10"]

1. e4 {[%clk 0:03:00]}  e5 {[%clk 0:02:48]} 2. Nf3 {[%clk 0:03:00]}  Nc6 {[%clk 0:02:41]} 3. Bc4 {[%clk 0:03:00]}  Nf6 {[%clk 0:02:40]} 4. d3 {[%clk 0:02:57]}  h6 {[%clk 0:02:39]} 5. c3 {[%clk 0:02:56]}  d6 {[%clk 0:02:38]} 6. h3 {[%clk 0:02:56]}  g6 {[%clk 0:02:39]} 7. O-O {[%clk 0:02:55]}  Bg7 {[%clk 0:02:39]} 8. Re1 {[%clk 0:02:54]}  O-O {[%clk 0:02:37]} 9. d4 {[%clk 0:02:54]}  a6 {[%clk 0:02:30]} 10. a4 {[%clk 0:02:46]}  Qe7 {[%clk 0:02:27]} 11. dxe5 {[%clk 0:02:33]}  Nxe5 {[%clk 0:02:17]} 12. Nxe5 {[%clk 0:02:31]}  Qxe5 {[%clk 0:02:13]} 13. Nd2 {[%clk 0:02:31]}  Qe7 {[%clk 0:02:02]} 14. Nf3 {[%clk 0:02:21]}  Nd7 {[%clk 0:01:54]} 15. Be3 {[%clk 0:02:08]}  Qxe4 {[%clk 0:01:38]} 16. Bd4 {[%clk 0:01:51]}  Qf5 {[%clk 0:01:01]} 17. Bd3 {[%clk 0:01:50]}  Qh5 {[%clk 0:00:56]} 18. Be2 {[%clk 0:01:38]}  Nf6 {[%clk 0:00:41]} 19. Qb3 {[%clk 0:01:25]}  Qd5 {[%clk 0:00:31]} 20. Bc4 {[%clk 0:01:24]}  Qc6 {[%clk 0:00:31]} 21. Bxf6 {[%clk 0:01:21]}  Bxf6 {[%clk 0:00:31]} 22. Bd5 {[%clk 0:01:19]}  Qc5 {[%clk 0:00:24]} 23. Rad1 {[%clk 0:01:14]}  c6 {[%clk 0:00:22]} 24. Be4 {[%clk 0:01:11]}  d5 {[%clk 0:00:21]} 25. Bb1 {[%clk 0:01:08]}  Kg7 {[%clk 0:00:17]} 26. Qc2 {[%clk 0:00:56]}  Qb6 {[%clk 0:00:14]} 27. Qd2 {[%clk 0:00:55]}  Qc7 {[%clk 0:00:14]} 28. Nd4 {[%clk 0:00:54]}  Bd7 {[%clk 0:00:13]} 29. Nb3 {[%clk 0:00:53]}  Rae8 {[%clk 0:00:13]} 30. Nc5 {[%clk 0:00:52]}  Bc8 {[%clk 0:00:13]} 31. Rxe8 {[%clk 0:00:46]}  Rxe8 {[%clk 0:00:13]} 32. Re1 {[%clk 0:00:47]}  Rxe1+ {[%clk 0:00:12]} 33. Qxe1 {[%clk 0:00:48]}  Qd6 {[%clk 0:00:13]} 34. b4 {[%clk 0:00:46]}  a5 {[%clk 0:00:13]} 35. Nd3 {[%clk 0:00:37]}  axb4 {[%clk 0:00:13]} 36. cxb4 {[%clk 0:00:38]}  b6 {[%clk 0:00:13]} 37. a5 {[%clk 0:00:36]}  bxa5 {[%clk 0:00:11]} 38. bxa5 {[%clk 0:00:37]}  Ba6 {[%clk 0:00:11]} 39. Qc1 {[%clk 0:00:31]}  Qc7 {[%clk 0:00:11]} 40. Qd2 {[%clk 0:00:27]}  Bb5 {[%clk 0:00:11]} 41. Nc5 {[%clk 0:00:25]}  Qa7 {[%clk 0:00:11]} 42. Nb3 {[%clk 0:00:22]}  Qa6 {[%clk 0:00:11]} 43. h4 {[%clk 0:00:21]}  Bd8 {[%clk 0:00:10]} 44. h5 {[%clk 0:00:20]}  Bc4 {[%clk 0:00:10]} 45. hxg6 {[%clk 0:00:20]}  fxg6 {[%clk 0:00:11]} 46. Nd4 {[%clk 0:00:17]}  c5 {[%clk 0:00:11]} 47. Nf3 {[%clk 0:00:17]}  Bxa5 {[%clk 0:00:10]} 48. Qb2+ {[%clk 0:00:17]}  Qf6 {[%clk 0:00:09]} 49. Qa2 {[%clk 0:00:17]}  Bxa2 {[%clk 0:00:08]} 50. Bxa2 {[%clk 0:00:18]}  Qe6 {[%clk 0:00:08]} 51. Nd2 {[%clk 0:00:17]}  c4 {[%clk 0:00:08]} 52. Nf1 {[%clk 0:00:16]}  Qd6 {[%clk 0:00:08]} 53. Ne3 {[%clk 0:00:17]}  c3 {[%clk 0:00:09]} 54. Bb1 {[%clk 0:00:17]}  d4 {[%clk 0:00:09]} 55. Nc4 {[%clk 0:00:17]}  Qc5 {[%clk 0:00:10]} 0-1


[Site "https://www.chess.com"]

[Event "Titled Tuesday Blitz March 07 Early 2023"]
[White "Larina, Maria"]
[Black "Koridze, Lile"]
[WhiteFideId "24113182"]
[BlackFideId "13612514"]
[WhiteElo "1848"]
[BlackElo "2047"]
[Result "0-1"]
[Round "02"]
[TimeControl "180+2"]
[Date "2023.03.07"]
[WhiteClock "0:00:13"]
[BlackClock "0:00:04"]

1. e4 {[%clk 0:03:00]}  c5 {[%clk 0:03:00]} 2. Nc3 {[%clk 0:03:00]}  d6 {[%clk 0:02:59]} 3. d4 {[%clk 0:03:00]}  cxd4 {[%clk 0:02:59]} 4. Qxd4 {[%clk 0:03:01]}  a6 {[%clk 0:02:57]} 5. b3 {[%clk 0:03:01]}  Nc6 {[%clk 0:02:57]} 6. Qd2 {[%clk 0:03:00]}  g6 {[%clk 0:02:58]} 7. Bb2 {[%clk 0:03:00]}  Bg7 {[%clk 0:02:58]} 8. O-O-O {[%clk 0:03:01]}  Nf6 {[%clk 0:02:58]} 9. f3 {[%clk 0:02:59]}  O-O {[%clk 0:02:58]} 10. g4 {[%clk 0:02:59]}  Rb8 {[%clk 0:02:55]} 11. h4 {[%clk 0:02:57]}  h5 {[%clk 0:02:52]} 12. g5 {[%clk 0:02:43]}  Nd7 {[%clk 0:02:52]} 13. f4 {[%clk 0:02:38]}  b5 {[%clk 0:02:51]} 14. f5 {[%clk 0:02:32]}  Nc5 {[%clk 0:02:33]} 15. fxg6 {[%clk 0:02:16]}  fxg6 {[%clk 0:02:11]} 16. Qd5+ {[%clk 0:02:12]}  Be6 {[%clk 0:02:11]} 17. Qd2 {[%clk 0:01:46]}  b4 {[%clk 0:01:41]} 18. Nd5 {[%clk 0:01:45]}  Nxe4 {[%clk 0:01:30]} 19. Qe3 {[%clk 0:01:26]}  Bxb2+ {[%clk 0:01:04]} 20. Kxb2 {[%clk 0:01:27]}  Bxd5 {[%clk 0:01:00]} 21. Rxd5 {[%clk 0:01:26]}  Nc3 {[%clk 0:01:00]} 22. Qe6+ {[%clk 0:01:22]}  Kg7 {[%clk 0:00:48]} 23. Bd3 {[%clk 0:01:20]}  Qe8 {[%clk 0:00:43]} 24. Nh3 {[%clk 0:01:06]}  Qf7 {[%clk 0:00:27]} 25. Qxf7+ {[%clk 0:00:45]}  Rxf7 {[%clk 0:00:27]} 26. Bc4 {[%clk 0:00:39]}  Ne5 {[%clk 0:00:18]} 27. Ra5 {[%clk 0:00:36]}  Nxc4+ {[%clk 0:00:16]} 28. bxc4 {[%clk 0:00:37]}  Rb6 {[%clk 0:00:16]} 29. Re1 {[%clk 0:00:35]}  e5 {[%clk 0:00:16]} 30. a3 {[%clk 0:00:33]}  Rf3 {[%clk 0:00:14]} 31. Ng1 {[%clk 0:00:32]}  bxa3+ {[%clk 0:00:13]} 32. Ka1 {[%clk 0:00:30]}  Rf2 {[%clk 0:00:06]} 33. Rxa3 {[%clk 0:00:26]}  Rxc2 {[%clk 0:00:06]} 34. Nf3 {[%clk 0:00:24]}  Rbb2 {[%clk 0:00:05]} 35. Rxc3 {[%clk 0:00:19]}  Rxc3 {[%clk 0:00:05]} 36. Kxb2 {[%clk 0:00:19]}  Rxf3 {[%clk 0:00:06]} 37. Rd1 {[%clk 0:00:20]}  Rf4 {[%clk 0:00:07]} 38. Rxd6 {[%clk 0:00:19]}  Rxc4 {[%clk 0:00:07]} 39. Rxa6 {[%clk 0:00:20]}  Rxh4 {[%clk 0:00:07]} 40. Ra7+ {[%clk 0:00:20]}  Kf8 {[%clk 0:00:06]} 41. Kc3 {[%clk 0:00:21]}  Rg4 {[%clk 0:00:06]} 42. Kd3 {[%clk 0:00:18]}  Rxg5 {[%clk 0:00:04]} 43. Ke4 {[%clk 0:00:18]}  h4 {[%clk 0:00:04]} 44. Rh7 {[%clk 0:00:18]}  Rh5 {[%clk 0:00:04]} 45. Rb7 {[%clk 0:00:17]}  h3 {[%clk 0:00:04]} 46. Kd5 {[%clk 0:00:17]}  h2 {[%clk 0:00:04]} 47. Ke6 {[%clk 0:00:15]}  h1=Q {[%clk 0:00:03]} 48. Rb8+ {[%clk 0:00:15]}  Kg7 {[%clk 0:00:03]} 49. Rb7+ {[%clk 0:00:13]}  Kh6 {[%clk 0:00:04]} 0-1


[Site "https://www.chess.com"]

[Event "Titled Tuesday Blitz March 07 Early 2023"]
[White "Foerster-Yialamas, Lucas"]
[Black "Pissama Ntsaou, Martial"]
[WhiteFideId "30901774"]
[BlackFideId "17400864"]
[WhiteElo "2067"]
[BlackElo "2065"]
[Result "1-0"]
[Round "02"]
[TimeControl "180+2"]
[Date "2023.03.07"]
[WhiteClock "0:02:08"]
[BlackClock "0:00:31"]

1. Nf3 {[%clk 0:03:00]}  d5 {[%clk 0:02:59]} 2. b3 {[%clk 0:03:00]}  c6 {[%clk 0:02:58]} 3. Bb2 {[%clk 0:03:00]}  Nf6 {[%clk 0:02:58]} 4. e3 {[%clk 0:03:00]}  Bf5 {[%clk 0:02:57]} 5. c4 {[%clk 0:02:59]}  e6 {[%clk 0:02:57]} 6. Nc3 {[%clk 0:02:59]}  Nbd7 {[%clk 0:02:56]} 7. Be2 {[%clk 0:02:59]}  Bd6 {[%clk 0:02:56]} 8. Rc1 {[%clk 0:02:57]}  O-O {[%clk 0:02:56]} 9. Nh4 {[%clk 0:02:56]}  Be4 {[%clk 0:02:49]} 10. d3 {[%clk 0:02:53]}  Ne8 {[%clk 0:02:33]} 11. dxe4 {[%clk 0:02:50]}  Qxh4 {[%clk 0:02:33]} 12. exd5 {[%clk 0:02:51]}  exd5 {[%clk 0:02:33]} 13. cxd5 {[%clk 0:02:50]}  cxd5 {[%clk 0:02:01]} 14. Qxd5 {[%clk 0:02:51]}  Rd8 {[%clk 0:01:38]} 15. Ne4 {[%clk 0:02:48]}  Nb6 {[%clk 0:01:36]} 16. Qf5 {[%clk 0:02:46]}  Bb4+ {[%clk 0:01:33]} 17. Kf1 {[%clk 0:02:46]}  Nd6 {[%clk 0:01:24]} 18. Nxd6 {[%clk 0:02:39]}  Rxd6 {[%clk 0:01:24]} 19. g3 {[%clk 0:02:36]}  Qh6 {[%clk 0:01:08]} 20. Kg2 {[%clk 0:02:33]}  Rd2 {[%clk 0:01:03]} 21. Rc2 {[%clk 0:02:23]}  Rfd8 {[%clk 0:01:01]} 22. Rhc1 {[%clk 0:02:21]}  R2d5 {[%clk 0:00:45]} 23. Qg4 {[%clk 0:02:11]}  Rg5 {[%clk 0:00:37]} 24. Qxb4 {[%clk 0:02:10]}  Nd5 {[%clk 0:00:31]} 25. Rc8 {[%clk 0:02:08]} 1-0


[Site "https://www.chess.com"]